bitfinex/quotes_SOLUSD_20250903
["timestamp","ask_amount","ask_price","bid_price","bid_amount"]
[1756894883416,7.93856695,210.61,210.6,57.4]
[1756894884008,7.93856695,210.61,210.6,37.4]
[1756894884226,7.93856695,210.61,210.6,57.4]
[1756894886001,3.1902968,210.61,210.6,57.4]
[1756894886933,3.1902968,210.61,210.6,58.06]
[1756894887310,7.93840942,210.61,210.6,57.4]
[1756894887812,3.1902968,210.61,210.6,58.06]
[1756894888017,2.90597366,210.61,210.6,58.06]
[1756894889024,2.90597366,210.61,210.6,57.4]
[1756894889213,7.65408628,210.61,210.6,57.4]
[1756894889720,7.65408628,210.61,210.6,37.4]
[1756894889906,7.65408628,210.61,210.6,37.36]
[1756894890226,4.80811262,210.61,210.6,20.0]
[1756894890433,7.65408628,210.61,210.6,57.36]
[1756894890630,7.65408628,210.61,210.58,20.66]
[1756894890805,7.65408628,210.61,210.6,20.0]
[1756894891004,7.65408628,210.61,210.59,37.36]
[1756894891211,7.65408628,210.61,210.6,20.0]
[1756894891625,7.93840942,210.61,210.6,37.36]
[1756894891823,2.90597366,210.61,210.6,58.02]
[1756894892428,7.65408628,210.61,210.6,58.02]
[1756894892935,7.93840942,210.61,210.6,37.36]
[1756894893135,7.93840942,210.61,210.6,57.36]
[1756894893914,7.93840942,210.61,210.6,37.36]
[1756894894116,7.93840942,210.61,210.6,57.36]
[1756894894315,7.93840942,210.61,210.6,37.36]
[1756894894529,7.93840942,210.61,210.6,57.36]
[1756894895119,7.65408628,210.61,210.58,20.66]
[1756894895436,30.80811262,210.61,210.59,37.36]
[1756894895638,0.28432314,210.6,210.59,57.36]
[1756894895825,4.74833808,210.6,210.59,58.02]
[1756894896021,0.28432314,210.59,210.57,20.0]
[1756894896225,0.28432314,210.59,210.58,37.36]
[1756894896535,3.1302968,210.59,210.57,20.66]
[1756894896736,26.28432314,210.57,210.54,20.0]
[1756894896935,3.1302968,210.55,210.54,20.0]
[1756894897237,3.1302968,210.55,210.54,58.02]
[1756894897437,2.84597366,210.55,210.54,58.02]
[1756894898640,7.59543934,210.55,210.54,58.02]
[1756894899020,4.74946568,210.55,210.54,58.02]
[1756894899217,7.59543934,210.55,210.54,20.0]
[1756894899533,7.59543934,210.55,210.54,57.36]
[1756894900124,7.59543934,210.55,210.54,37.36]
[1756894900711,7.59543934,210.55,210.52,20.0]
[1756894900914,4.74946568,210.55,210.53,37.36]
[1756894901148,16.68312989,210.55,210.54,37.36]
[1756894901356,26.0,210.53,210.52,37.36]
[1756894901729,40.28265372,210.53,210.51,20.0]
[1756894901932,0.06,210.52,210.49,20.0]
[1756894902242,28.84597366,210.5,210.48,37.36]
[1756894902465,2.84597366,210.49,210.48,37.36]
[1756894903023,3.1302968,210.49,210.48,37.36]
[1756894903240,0.28432314,210.48,210.46,20.75]
[1756894903444,26.28432314,210.48,210.47,37.36]
[1756894903631,33.88134202,210.48,210.47,37.36]
[1756894903828,33.88134202,210.48,210.46,20.75]
[1756894903829,45.26523666,210.48,210.46,0.03]
[1756894904029,2.84597366,210.47,210.46,37.39]
[1756894904337,2.84597366,210.47,210.46,57.39]
[1756894904538,2.84597366,210.47,210.46,58.11]
[1756894904735,2.84597366,210.47,210.46,57.39]
[1756894904925,2.84597366,210.47,210.46,58.11]
[1756894905442,4.43823038,210.6,210.52,20.0]
[1756894905646,26.0,210.54,210.53,38.1]
[1756894905815,4.43823038,210.54,210.53,37.38]
[1756894906334,30.43823038,210.54,210.53,37.38]
[1756894906844,0.28432314,210.53,210.5,20.0]
[1756894907024,26.0,210.53,210.5,20.0]
[1756894907214,4.43823038,210.51,210.5,20.0]
[1756894907619,9.18859853,210.51,210.5,20.0]
[1756894907833,9.18859853,210.51,210.5,20.72]
[1756894908232,4.75036815,210.51,210.5,20.72]
[1756894908546,9.18859853,210.51,210.5,20.72]
[1756894909327,4.43823038,210.51,210.5,20.72]
[1756894909921,9.18859853,210.51,210.5,20.72]
[1756894910344,9.18859853,210.51,210.5,20.0]
[1756894910654,26.0,210.49,210.48,20.0]
[1756894910824,30.43823038,210.49,210.48,20.0]
[1756894911229,4.43823038,210.49,210.48,20.72]
[1756894912156,9.18904989,210.49,210.48,58.1]
[1756894912851,35.47337303,210.49,210.48,57.38]
[1756894913228,35.47337303,210.49,210.48,20.0]
[1756894913442,0.28432314,210.48,210.46,57.41]
[1756894913637,0.28432314,210.48,210.46,58.13]
[1756894914042,4.75127096,210.47,210.46,58.13]
[1756894914246,9.18950134,210.47,210.46,58.13]
[1756894914638,4.43823038,210.47,210.46,58.13]
[1756894915442,30.43823038,210.47,210.46,58.13]
[1756894915938,9.18950134,210.47,210.46,58.13]
[1756894916747,9.18950134,210.47,210.46,20.03]
[1756894916957,9.18950134,210.47,210.46,0.03]
[1756894917341,4.75127096,210.47,210.46,0.03]
[1756894917544,9.18950134,210.47,210.46,0.03]
[1756894918442,35.18950134,210.47,210.46,0.03]
[1756894919559,35.47382448,210.47,210.46,0.03]
[1756894919739,31.0355941,210.47,210.46,20.03]
[1756894919932,9.47382448,210.47,210.46,20.03]
[1756894920134,9.47382448,210.47,210.46,20.75]
[1756894920333,35.47382448,210.47,210.46,20.03]
[1756894920651,35.47382448,210.47,210.46,0.03]
[1756894920833,13.87991715,210.46,210.43,0.03]
[1756894921157,4.72255352,210.44,210.43,20.03]
[1756894921360,4.72255352,210.44,210.43,0.03]
[1756894921738,0.28432314,210.44,210.43,0.03]
[1756894921956,4.72255352,210.44,210.43,0.03]
[1756894922156,9.47450181,210.44,210.43,20.03]
[1756894922659,9.47450181,210.44,210.43,0.03]
[1756894923352,9.47450181,210.44,210.32,0.03]
[1756894923353,13.59559401,210.39,210.37,20.0]
[1756894923538,44.03382439,210.38,210.37,20.0]
[1756894924055,58.32804714,210.38,210.37,20.0]
[1756894924257,63.08135068,210.38,210.37,20.0]
[1756894925153,14.29422275,210.38,210.37,20.72]
[1756894925354,4.43823038,210.38,210.37,20.72]
[1756894925949,26.0,210.4,210.37,20.72]
[1756894926149,4.43823038,210.38,210.37,20.0]
[1756894926655,9.19153392,210.38,210.37,20.72]
[1756894926970,9.47585706,210.38,210.37,20.0]
[1756894927158,23.76803685,210.38,210.37,20.0]
[1756894927359,49.76803685,210.38,210.37,20.0]
[1756894928656,49.48371371,210.38,210.37,20.0]
[1756894929760,49.48371371,210.38,210.33,20.72]
[1756894929761,26.0,210.36,210.33,20.72]
[1756894929961,4.43823038,210.34,210.33,20.0]
[1756894930162,4.43823038,210.34,210.29,0.03]
[1756894930163,26.0,210.3,210.29,0.03]
[1756894930464,26.0,210.3,210.24,0.1]
[1756894930465,26.0,210.25,210.24,0.1]
[1756894930646,35.1607839,210.25,210.24,0.1]
[1756894931362,30.72255352,210.25,210.24,0.1]
[1756894931557,36.39016822,210.25,210.24,0.1]
[1756894931941,10.39016822,210.25,210.24,0.1]
[1756894932336,15.14641078,210.25,210.24,0.1]
[1756894932862,5.0405657,210.25,210.24,0.1]
[1756894933184,28.74200479,210.25,210.24,0.1]
[1756894933462,38.84784987,210.25,210.24,0.1]
[1756894933672,19.34569409,210.25,210.24,0.1]
[1756894933851,29.45153917,210.25,210.24,0.1]
[1756894934039,50.69529661,210.25,210.24,0.1]
[1756894935247,40.58945153,210.25,210.24,0.81]
[1756894935672,4.75511359,210.3,210.24,0.81]
[1756894935968,10.10584508,210.25,210.24,0.81]
[1756894936346,39.7,210.32,210.24,0.81]
[1756894936551,11.89550912,210.31,210.24,0.81]
[1756894936753,10.10584508,210.27,210.24,0.81]
[1756894936965,26.0,210.31,210.24,0.81]
[1756894937166,10.10584508,210.27,210.24,0.81]
[1756894937764,10.10584508,210.28,210.24,5.56628245]
[1756894938074,10.10584508,210.28,210.25,0.71]
[1756894938759,0.14216157,210.28,210.25,0.71]
[1756894938949,10.10584508,210.27,210.25,0.71]
[1756894939352,10.10584508,210.26,210.24,0.1]
[1756894939660,10.10584508,210.27,210.24,0.1]
[1756894939861,10.10584508,210.27,210.25,0.71]
[1756894940346,0.28432314,210.28,210.25,0.71]
[1756894940547,10.39016822,210.28,210.25,0.71]
[1756894940743,10.10584508,210.27,210.25,0.71]
[1756894941463,10.10584508,210.3,210.25,5.46613675]
[1756894941672,6.71196206,210.46,210.27,10.10584508]
[1756894941673,10.10584508,210.33,210.27,10.10584508]
[1756894941849,4.75285171,210.4,210.28,10.81584508]
[1756894941850,0.28432314,210.36,210.28,10.81584508]
[1756894942058,10.10584508,210.34,210.29,0.71]
[1756894942263,26.0,210.36,210.29,0.71]
[1756894942493,10.10584508,210.32,210.29,0.71]
[1756894943177,10.10584508,210.3,210.24,4.85644212]
[1756894943477,10.10584508,210.27,210.24,4.85644212]
[1756894943686,10.10584508,210.28,210.25,0.71]
[1756894943888,4.75470589,210.32,210.25,0.71]
[1756894944181,10.10584508,210.28,210.25,0.71]
[1756894944767,10.10584508,210.3,210.25,0.71]
[1756894944972,10.10584508,210.31,210.25,10.81584508]
[1756894945175,10.10584508,210.31,210.26,0.71]
[1756894945378,4.75381541,210.36,210.27,4.75579017]
[1756894945588,39.62,210.4,210.28,0.71]
[1756894945769,10.10584508,210.33,210.28,0.71]
[1756894946086,39.62,210.4,210.29,10.10584508]
[1756894946087,10.10584508,210.35,210.29,10.10584508]
[1756894946385,10.10584508,210.35,210.27,16.6452656]
[1756894946386,10.10584508,210.33,210.3,0.71]
[1756894946584,10.10584508,210.32,210.31,0.71]
[1756894947288,10.10584508,210.33,210.31,0.71]
[1756894947460,10.10584508,210.34,210.31,5.46477793]
[1756894947659,10.10584508,210.34,210.32,0.71]
[1756894948093,10.10584508,210.33,210.32,0.71]
[1756894948594,10.10584508,210.35,210.32,0.71]
[1756894948888,26.0,210.34,210.3,0.71]
[1756894949094,10.10584508,210.31,210.3,0.71]
[1756894950380,0.28432314,210.32,210.24,0.81]
[1756894950768,10.10584508,210.26,210.24,0.81]
[1756894950970,10.10584508,210.26,210.25,0.71]
[1756894951769,10.10584508,210.27,210.25,5.46624256]
[1756894952067,10.10584508,210.27,210.26,0.71]
[1756894952270,26.06,210.34,210.26,0.71]
[1756894952500,10.10584508,210.3,210.26,0.71]
[1756894953001,10.10584508,210.31,210.26,0.71]
[1756894953772,10.10584508,210.31,210.27,4.75579017]
[1756894953969,10.10584508,210.31,210.28,0.71]
[1756894954395,10.10584508,210.31,210.29,0.71]
[1756894954702,10.10584508,210.31,210.3,0.71]
[1756894955024,26.06,210.34,210.3,0.71]
[1756894955195,0.06,210.34,210.3,5.46511174]
[1756894955387,0.06,210.34,210.31,0.71]
[1756894955704,10.16584508,210.34,210.31,0.71]
[1756894956001,10.16584508,210.34,210.32,0.71]
[1756894956772,10.16584508,210.34,210.32,5.46463621]
[1756894957395,10.10584508,210.33,210.31,4.75487487]
[1756894957597,10.10584508,210.33,210.32,0.71]
[1756894958285,10.10584508,210.33,210.3,0.71]
[1756894958605,10.10584508,210.31,210.29,39.44]
[1756894958833,10.10584508,210.33,210.3,0.71]
[1756894959608,10.10584508,210.33,210.31,0.71]
[1756894959930,0.06,210.34,210.32,4.75465956]
[1756894960434,0.06,210.34,210.33,0.71]
[1756894962022,0.06,210.34,210.33,40.11]
[1756894962319,0.06,210.34,210.29,10.10584508]
[1756894962547,10.16584508,210.34,210.3,44.82490636]
[1756894962825,0.06,210.34,210.31,0.69]
[1756894963597,0.06,210.34,210.3,4.75490636]
[1756894963817,10.16584508,210.34,210.31,40.03]
[1756894964025,10.16584508,210.34,210.32,5.44465329]
[1756894964223,0.06,210.34,210.32,4.75465329]
[1756894964412,0.06,210.34,210.33,0.69]
[1756894965014,0.06,210.34,210.33,10.79584508]
[1756894965210,0.06,210.34,210.33,24.39143909]
[1756894965427,0.06,210.34,210.33,14.28559401]
[1756894965598,0.06,210.34,210.33,21.19811295]
[1756894965923,0.06,210.34,210.33,0.69]
[1756894966129,0.06,210.34,210.33,44.7244335]
[1756894966827,0.06,210.34,210.33,39.97]
[1756894967513,0.06,210.34,210.33,44.7244335]
[1756894968140,6.97251894,210.34,210.33,39.26]
[1756894968630,0.06,210.34,210.33,39.95]
[1756894970121,0.06,210.34,210.33,44.7044335]
[1756894972418,0.06,210.34,210.33,51.51695244]
[1756894973143,0.06,210.34,210.33,65.11254645]
[1756894973341,0.06,210.34,210.33,144.81254645]
[1756894973656,0.06,210.34,210.33,98.74002751]
[1756894973935,0.06,210.34,210.33,140.74296795]
[1756894974128,0.06,210.34,210.33,101.58296795]
[1756894974438,0.06,210.34,210.33,140.72296795]
[1756894974606,0.06,210.34,210.33,85.1444335]
[1756894974810,0.06,210.34,210.33,127.10737394]
[1756894975519,0.06,210.34,210.33,118.82]
[1756894975713,0.06,210.34,210.33,123.5744335]
[1756894976317,0.06,210.34,210.33,80.39]
[1756894976643,0.06,210.34,210.33,118.78]
[1756894977338,0.06,210.34,210.33,39.08]
[1756894977571,0.06,210.34,210.33,39.06]
[1756894977724,0.06,210.34,210.33,39.75]
[1756894978137,0.06,210.34,210.33,39.06]
[1756894978437,0.06,210.34,210.3,16.43853445]
[1756894978635,0.06,210.34,210.31,39.04]
[1756894978836,0.06,210.34,210.31,0.69]
[1756894979022,0.06,210.34,210.32,39.02]
[1756894980538,0.06,210.34,210.32,43.77459037]
[1756894981819,0.06,210.34,210.3,0.69]
[1756894982023,0.06,210.34,210.31,38.96]
[1756894982526,0.06,210.34,210.29,108.54294044]
[1756894982725,0.06,210.34,210.3,38.94]
[1756894982945,0.06,210.34,210.3,39.63]
[1756894983636,0.06,210.34,210.3,43.69505854]
[1756894983858,0.06,210.34,210.31,0.69]
[1756894984025,0.06,210.34,210.32,38.92]
[1756894984226,0.06,210.34,210.32,39.61]
[1756894984527,0.06,210.34,210.33,17.12853445]
[1756894984727,0.06,210.34,210.33,43.12853445]
[1756894984728,1e-08,210.34,210.33,43.12853445]
[1756894984926,1e-08,210.34,210.33,21.88296795]
[1756894985121,0.06,210.37,210.33,21.88296795]
[1756894985122,1e-08,210.37,210.36,39.59559401]
[1756894985449,1e-08,210.37,210.36,84.18147489]
[1756894985828,1e-08,210.37,210.36,84.87147489]
[1756894986325,1e-08,210.37,210.36,89.62523035]
[1756894989642,0.06,210.47,210.36,153.80721766]
[1756894989951,0.06,210.47,210.43,16.43853445]
[1756894990154,0.06,210.47,210.43,55.23853445]
[1756894990361,0.06,210.47,210.43,55.92853445]
[1756894991735,0.06,210.47,210.43,60.68070856]
[1756894992050,0.06,210.47,210.43,57.14776812]
[1756894992255,0.06,210.47,210.43,59.99070856]
[1756894992454,0.06,210.47,210.43,59.97070856]
[1756894993754,0.06,210.47,210.43,60.65070856]
[1756894994145,0.06,210.47,210.43,46.37511455]
[1756894994336,0.06,210.47,210.43,4.75217411]
[1756894994653,0.06,210.47,210.43,46.33511455]
[1756894995157,2.96294044,210.47,210.41,2.84294044]
[1756894995537,2.96294044,210.47,210.42,43.47235877]
[1756894995733,0.40432314,210.47,210.42,38.72]
[1756894995938,0.40432314,210.47,210.42,41.56294044]
[1756894996346,0.40432314,210.47,210.42,46.31532128]
[1756894996858,0.06,210.46,210.39,4.75287765]
[1756894997048,0.06,210.47,210.43,2.84294044]
[1756894997248,0.06,210.47,210.43,55.79853445]
[1756894997443,0.06,210.47,210.43,60.55070856]
[1756894997841,0.06,210.47,210.43,57.70776812]
[1756894998146,0.06,210.47,210.43,60.55070856]
[1756894998746,0.06,210.47,210.43,21.87070856]
[1756894998945,0.06,210.47,210.46,39.59559401]
[1756894999147,0.06,210.47,210.46,81.09853445]
[1756894999341,0.06,210.47,210.46,81.77853445]
[1756894999660,0.06,210.47,210.46,90.58866953]
[1756894999854,0.06,210.47,210.46,83.68709073]
[1756895000042,0.06,210.47,210.46,90.58866953]
[1756895001334,0.06,210.49,210.46,90.58866953]
[1756895001335,1e-08,210.49,210.46,90.58866953]
[1756895001539,0.2,210.56,210.53,13.59559401]
[1756895001741,0.2,210.56,210.53,59.13717281]
[1756895001954,0.2,210.56,210.53,59.81717281]
[1756895002258,1e-08,210.54,210.53,59.81717281]
[1756895003343,1e-08,210.54,210.53,64.56708968]
[1756895004569,1e-08,210.56,210.55,20.49717281]
[1756895004862,1e-08,210.56,210.55,59.07717281]
[1756895005065,1e-08,210.56,210.55,59.75717281]
[1756895005445,1e-08,210.56,210.55,25.92663849]
[1756895005759,1e-08,210.56,210.55,64.48663849]
[1756895007466,1e-08,210.56,210.55,144.18663849]
[1756895007646,1e-08,210.56,210.55,105.62663849]
[1756895007846,1e-08,210.56,210.55,144.12663849]
[1756895008047,1e-08,210.56,210.55,170.12663849]
[1756895008242,1e-08,210.56,210.55,131.62663849]
[1756895008446,1e-08,210.56,210.55,136.52505969]
[1756895008666,1e-08,210.56,210.55,143.42663849]
[1756895008862,1e-08,210.56,210.55,144.10663849]
[1756895009640,1e-08,210.56,210.55,98.72505969]
[1756895009843,1e-08,210.56,210.55,143.42663849]
[1756895010056,1e-08,210.56,210.55,144.10663849]
[1756895010453,1e-08,210.56,210.55,137.20505969]
[1756895010664,1e-08,210.56,210.55,104.94663849]
[1756895010849,1e-08,210.56,210.55,144.10663849]
[1756895012844,1e-08,210.56,210.55,64.40663849]
[1756895013770,1e-08,210.56,210.55,18.34505969]
[1756895013969,1e-08,210.56,210.55,63.64663849]
[1756895014478,1e-08,210.56,210.55,58.89717281]
[1756895014843,1e-08,210.56,210.55,38.4]
[1756895015047,1e-08,210.56,210.55,64.32663849]
[1756895015977,1e-08,210.56,210.55,144.02663849]
[1756895016780,6.9015788,210.66,210.59,13.59559401]
[1756895017064,6.9615788,210.65,210.6,38.38]
[1756895017281,6.9015788,210.61,210.55,4.74946568]
[1756895017454,6.9015788,210.6,210.57,4.74901457]
[1756895017652,6.9015788,210.59,210.55,4.74925257]
[1756895017840,23.65930087,210.8,210.55,4.74925257]
[1756895017841,6.9015788,210.58,210.55,4.74925257]
[1756895018043,6.9015788,210.57,210.56,38.36]
[1756895018941,6.9615788,210.57,210.51,6.9015788]
[1756895019148,6.9015788,210.55,210.52,38.34]
[1756895019377,6.9615788,210.55,210.49,20.49717281]
[1756895019568,6.9615788,210.55,210.51,4.75036815]
[1756895019765,6.9615788,210.55,210.52,38.34]
[1756895019971,6.9015788,210.55,210.53,38.32]
[1756895020148,6.9015788,210.54,210.53,38.32]
[1756895020473,6.9015788,210.55,210.53,38.32]
[1756895020645,6.9015788,210.56,210.53,38.32]
[1756895021877,0.06,210.58,210.53,38.32]
[1756895022073,6.9015788,210.56,210.53,38.32]
[1756895022949,6.9015788,210.55,210.53,38.32]
[1756895023144,6.9015788,210.56,210.53,38.32]
[1756895023546,0.28432314,210.57,210.53,38.32]
[1756895023775,6.9015788,210.55,210.54,38.26]
[1756895025685,10.071387,210.55,210.54,38.26]
[1756895025978,0.06,210.56,210.54,38.26]
[1756895026180,0.06,210.56,210.54,43.67969127]
[1756895026350,0.06,210.56,210.54,43.00969127]
[1756895027386,0.06,210.56,210.54,38.26]
[1756895028474,0.06,210.56,210.54,43.67960352]
[1756895028873,0.06,210.56,210.55,0.67]
[1756895029150,0.06,210.56,210.55,5.41946568]
[1756895030447,0.06,210.56,210.55,19.01505969]
[1756895030987,0.06,210.56,210.55,103.15095573]
[1756895031273,0.06,210.56,210.55,23.45095573]
[1756895033561,0.06,210.56,210.55,19.01505969]
[1756895033873,0.06,210.56,210.55,57.13505969]
[1756895034383,0.06,210.56,210.55,61.57095573]
[1756895034914,0.12,210.56,210.53,0.03]
[1756895035189,4.43589604,210.54,210.53,0.03]
[1756895035593,4.49589604,210.54,210.53,30.37]
[1756895037401,9.24558731,210.54,210.53,30.37]
[1756895037694,14.88491349,210.54,210.53,30.37]
[1756895038476,15.16923663,210.54,210.53,30.37]
[1756895038795,10.41954536,210.54,210.53,0.03]
[1756895038967,10.35954536,210.54,210.53,0.03]
[1756895040494,15.10923663,210.54,210.53,0.03]
[1756895041101,15.16923663,210.54,210.53,0.03]
[1756895045285,5.03401441,210.54,210.53,0.03]
[1756895045479,10.07522222,210.54,210.53,0.7]
[1756895045687,10.07522222,210.55,210.53,0.7]
[1756895046699,10.07522222,210.54,210.53,0.7]
[1756895047801,10.35954536,210.54,210.53,0.7]
[1756895049000,10.35954536,210.54,210.53,0.03]
[1756895049516,15.16923663,210.54,210.53,0.03]
[1756895049671,41.16923663,210.54,210.53,0.03]
[1756895051598,26.0,210.51,210.5,0.03]
[1756895051774,36.07522222,210.51,210.5,0.03]
[1756895052094,36.13522222,210.51,210.5,0.03]
[1756895052614,40.88559037,210.51,210.5,0.03]
[1756895052998,40.82559037,210.51,210.5,0.03]
[1756895053577,40.88559037,210.51,210.5,0.03]
[1756895055684,41.10991351,210.51,210.5,0.03]
[1756895055893,41.16991351,210.51,210.5,0.03]
[1756895056800,54.76550752,210.51,210.5,0.03]
[1756895057305,41.10991351,210.51,210.5,0.03]
[1756895057610,35.47533136,210.51,210.5,0.03]
[1756895059500,4.75036815,210.51,210.5,0.7]
[1756895059685,4.44064007,210.51,210.5,0.7]
[1756895060203,4.44064007,210.51,210.5,0.03]
[1756895060891,9.19100822,210.51,210.5,0.03]
[1756895061900,9.19100822,210.51,210.5,0.7]
[1756895062103,9.19100822,210.51,210.5,0.03]
[1756895063182,9.47533136,210.51,210.5,0.03]
[1756895063617,5.03469129,210.51,210.5,0.7]
[1756895063793,0.28432314,210.51,210.5,0.7]
[1756895063992,4.72496321,210.51,210.5,0.7]
[1756895064317,9.47533136,210.51,210.5,0.7]
[1756895064608,9.47533136,210.51,210.5,0.03]
[1756895064808,9.47533136,210.51,210.5,0.7]
[1756895066411,9.47533136,210.51,210.5,0.03]
[1756895067105,4.72496321,210.51,210.5,0.03]
[1756895067499,4.72496321,210.51,210.5,0.7]
[1756895067697,9.47533136,210.51,210.5,0.03]
[1756895068798,9.53533136,210.51,210.5,0.03]
[1756895069310,9.47533136,210.51,210.5,0.03]
[1756895075635,13.59559401,210.48,210.37,0.7]
[1756895075924,4.44064007,210.38,210.37,0.03]
[1756895076295,4.44064007,210.38,210.37,0.7]
[1756895077414,77.41559401,210.44,210.37,0.7]
[1756895077625,4.44064007,210.38,210.37,0.7]
[1756895078709,9.19394361,210.38,210.37,0.7]
[1756895079234,9.47826675,210.38,210.37,0.7]
[1756895079610,9.47826675,210.38,210.37,0.03]
[1756895079805,9.47826675,210.38,210.37,0.7]
[1756895081424,4.72496321,210.38,210.37,0.7]
[1756895083725,11.87950068,210.45,210.37,5.4534895]
[1756895083726,26.0,210.43,210.37,5.4534895]
[1756895083925,4.75127096,210.47,210.38,0.66]
[1756895084129,4.44064007,210.42,210.38,0.66]
[1756895084629,4.44064007,210.4,210.38,0.66]
[1756895085541,2.84377332,210.4,210.38,0.66]
[1756895086827,2.84377332,210.39,210.38,0.66]
[1756895088214,5.4534895,210.48,210.38,5.41319342]
[1756895088420,0.12,210.53,210.42,2.84377332]
[1756895088627,2.84377332,210.49,210.43,3.50377332]
[1756895088832,28.84377332,210.49,210.44,5.41194829]
[1756895089036,26.0,210.49,210.45,0.66]
[1756895089228,2.84377332,210.48,210.45,0.66]
[1756895089741,2.84377332,210.48,210.46,0.66]
[1756895090430,2.84377332,210.48,210.47,0.66]
[1756895091031,0.28432314,210.48,210.47,0.66]
[1756895091447,0.28432314,210.49,210.47,5.41113764]
[1756895091619,0.28432314,210.49,210.48,0.66]
[1756895092328,3.12809646,210.49,210.45,0.66]
[1756895092529,3.12809646,210.49,210.4,63.82]
[1756895092530,0.28432314,210.47,210.46,0.66]
[1756895093232,0.28432314,210.47,210.42,2.84377332]
[1756895093538,0.28432314,210.47,210.43,0.66]
[1756895094728,2.84377332,210.46,210.43,0.66]
[1756895095134,2.84377332,210.46,210.42,4.7522601]
[1756895095135,4.75081951,210.49,210.39,56.16864042]
[1756895095440,30.75081951,210.49,210.44,0.66]
[1756895095619,0.14216157,210.48,210.44,0.66]
[1756895096542,2.84377332,210.45,210.44,0.66]
[1756895096744,2.84377332,210.46,210.44,0.66]
[1756895096954,3.12809646,210.46,210.45,0.66]
[1756895097131,3.12809646,210.46,210.4,4.75282736]
[1756895097320,2.84377332,210.44,210.42,0.66]
[1756895097524,2.84377332,210.44,210.43,0.66]
[1756895097721,0.28432314,210.43,210.4,0.66]
[1756895097946,2.84377332,210.41,210.38,4.75330292]
[1756895098123,2.84377332,210.39,210.37,37.83]
[1756895098446,2.84377332,210.38,210.37,37.83]
[1756895098938,2.84377332,210.38,210.37,38.49]
[1756895100245,26.06,210.43,210.37,0.03]
[1756895100442,2.84377332,210.38,210.37,0.03]
[1756895101420,2.84377332,210.38,210.37,0.69]
[1756895101629,2.84377332,210.38,210.37,0.03]
[1756895102338,7.59707686,210.38,210.37,0.03]
[1756895103635,3.12809646,210.38,210.37,0.03]
[1756895103841,3.12809646,210.38,210.37,0.69]
[1756895104140,3.12809646,210.38,210.37,0.03]
[1756895104541,7.8814,210.38,210.37,0.03]
[1756895105525,0.28432314,210.38,210.37,0.69]
[1756895105730,2.84377332,210.39,210.37,0.69]
[1756895106247,2.84377332,210.38,210.37,0.03]
[1756895106449,30.75221618,210.43,210.37,0.03]
[1756895106641,2.84377332,210.38,210.37,0.03]
[1756895106838,0.06,210.45,210.37,0.03]
[1756895106839,2.84377332,210.42,210.38,0.66]
[1756895107650,2.84377332,210.41,210.38,0.66]
[1756895107953,2.84377332,210.41,210.37,0.03]
[1756895107954,30.81180443,210.45,210.39,0.66]
[1756895108150,2.84377332,210.4,210.39,0.66]
[1756895108751,2.84377332,210.4,210.37,0.03]
[1756895108964,2.84377332,210.38,210.37,0.03]
[1756895109151,3.12809646,210.38,210.37,0.03]
[1756895111057,7.8814,210.38,210.37,0.03]
[1756895111451,3.12809646,210.38,210.37,0.03]
[1756895111851,7.8814,210.38,210.37,0.03]
[1756895112546,0.28432314,210.38,210.37,0.73]
[1756895112753,3.12809646,210.38,210.37,0.73]
[1756895115060,3.12809646,210.38,210.37,0.03]